[Event "4NCL 2021-22"]
[Site "England"]
[Date "2022.02.12"]
[Round "3.51"]
[White "Grant, David J"]
[Black "Thorarinsson, Pall A."]
[Result "0-1"]
[ECO "B43"]
[WhiteElo "2080"]
[BlackElo "2166"]
[Annotator "NA"]
[PlyCount "46"]
[EventDate "2021.11.27"]
[EventType "team-tourn"]
[EventCountry "ENG"]
[SourceTitle "playchess.com"]
[Source "ChessBase"]
[SourceQuality "1"]
[TimeControl "40/6000+30:3000+30"]

1. e4 {[%emt 0:00:07]} c5 {[%emt 0:00:36]} 2. Nc3 {[%emt 0:01:42]} e6 {[%emt 0:01:56]} 3. Nf3 {[%emt 0:01:27]} a6 {[%emt 0:04:18]} 4. d4 {[%emt 0:11:23]} cxd4 {[%emt 0:00:09]} 5. Nxd4 {[%emt 0:00:10]} Qc7 {[%emt 0:00:33]} 6. Bd3 {[%emt 0:10:33]} Nf6 {[%emt 0:07:40]} 7. O-O {[%emt 0:03:39]} b5 {[%emt 0:08:28]} 8. Be3 {[%emt 0:06:32]} Bb7 {[%emt 0:02:45]} 9. a3 {[%emt 0:20:43]} b4 {[%emt 0:09:27]} 10. axb4 {[%emt 0:02:39]} Bxb4 {[%emt 0:00:06]} 11. Ra4 {[%emt 0:00:21]} Bxc3 {[%emt 0:10:21]} 12. bxc3 {[%emt 0:00:19]} O-O {[%emt 0:09:40]} 13. Rc4 {[%emt 0:04:41]} Qd8 {[%emt 0:25:49]} 14. e5 {[%emt 0:03:23]} Nd5 {[%emt 0:01:17]} 15. Qh5 {[%emt 0:08:53]} f5 {[%emt 0:09:47]} 16. exf6 {[%emt 0:08:45]} Nxf6 {[%emt 0:00:06]} 17. Qh3 {[%emt 0:00:56]} e5 {[%emt 0:02:56]} 18. Nf5 {[%emt 0:04:14]} d5 {[%emt 0:02:40]} 19. Qg3 {[%emt 0:06:49]} Nh5 {[%emt 0:02:06]} 20. Qxe5 {[%emt 0:01:08]} dxc4 {[%emt 0:02:24]} 21. Ne7+ {[%emt 0:05:45]} Kh8 {[%emt 0:00:20]} 22. Qxh5 {[%emt 0:00:12]} cxd3 {[%emt 0:00:06]} 23. Bg5 {[%emt 0:00:13]} Qe8 {[%emt 0:00:26]} 0-1

[Event "4NCL 2021-22"]
[Site "England"]
[Date "2022.02.12"]
[Round "3.52"]
[White "Carroll, Peter"]
[Black "Payne, Matthew J"]
[Result "1/2-1/2"]
[ECO "E73"]
[WhiteElo "2122"]
[BlackElo "2158"]
[Annotator "NA"]
[PlyCount "70"]
[EventDate "2021.11.27"]
[EventType "team-tourn"]
[EventCountry "ENG"]
[SourceTitle "playchess.com"]
[Source "ChessBase"]
[SourceQuality "1"]
[TimeControl "40/6000+30:3000+30"]

1. d4 {[%emt 0:00:30]} Nf6 {[%emt 0:00:11]} 2. c4 {[%emt 0:00:06]} g6 {[%emt 0:00:10]} 3. Nc3 {[%emt 0:00:05]} Bg7 {[%emt 0:00:07]} 4. e4 {[%emt 0:00:07]} d6 {[%emt 0:00:06]} 5. Be2 {[%emt 0:00:05]} O-O {[%emt 0:00:17]} 6. Be3 {[%emt 0:00:04]} e5 {[%emt 0:00:16]} 7. d5 {[%emt 0:00:06]} a5 {[%emt 0:00:21]} 8. h4 {[%emt 0:00:23]} Na6 {[%emt 0:02:05]} 9. g4 {[%emt 0:00:36]} Nc5 {[%emt 0:00:12]} 10. Bf3 {[%emt 0:00:07]} c6 {[%emt 0:00:47]} 11. g5 {[%emt 0:00:34]} Nfd7 {[%emt 0:00:57]} 12. dxc6 {[%emt 0:00:25]} bxc6 {[%emt 0:00:08]} 13. Qxd6 {[%emt 0:00:09]} Qb6 {[%emt 0:00:09]} 14. Rd1 {[%emt 0:03:08]} Re8 {[%emt 0:19:17]} 15. Nge2 {[%emt 0:32:02]} Bf8 {[%emt 0:08:00]} 16. Qd2 {[%emt 0:01:01]} Qb4 {[%emt 0:06:19]} 17. b3 {[%emt 0:08:41]} a4 {[%emt 0:06:07]} 18. Nxa4 {[%emt 0:01:34]} Nxa4 {[%emt 0:00:56]} 19. bxa4 {[%emt 0:00:15]} Qxc4 {[%emt 0:04:04]} 20. Rc1 {[%emt 0:00:59]} Qe6 {[%emt 0:00:12]} 21. Qc2 {[%emt 0:03:21]} Bb4+ {[%emt 0:05:48]} 22. Kf1 {[%emt 0:00:14]} c5 {[%emt 0:04:52]} 23. Qb3 {[%emt 0:06:25]} Qe7 {[%emt 0:02:25]} 24. a3 {[%emt 0:04:05]} Ba5 {[%emt 0:00:02]} 25. Qd5 {[%emt 0:03:15]} Ba6 {[%emt 0:05:16]} 26. Bg4 {[%emt 0:05:33]} Nb6 {[%emt 0:02:13]} 27. Qxc5 {[%emt 0:01:37]} Nxa4 {[%emt 0:02:19]} 28. Qxe7 {[%emt 0:00:31]} Rxe7 {[%emt 0:00:02]} 29. Kg2 {[%emt 0:00:30]} Rb8 {[%emt 0:03:06]} 30. Rb1 {[%emt 0:02:43]} Rd8 {[%emt 0:08:56]} 31. Rhc1 {[%emt 0:07:23]} Bd3 {[%emt 0:03:02]} 32. Rb3 {[%emt 0:03:23]} Bxe4+ {[%emt 0:00:12]} 33. f3 {[%emt 0:01:26]} Rb7 {[%emt 0:02:22]} 34. Rxb7 {[%emt 0:01:01]} Bxb7 {[%emt 0:02:14]} 35. Rc4 {[%emt 0:01:40]} Nb6 {[%emt 0:09:06]} 1/2-1/2

[Event "4NCL 2021-22"]
[Site "England"]
[Date "2022.02.12"]
[Round "3.53"]
[White "Willson, Ollie"]
[Black "Venkatesan, Kavin"]
[Result "1/2-1/2"]
[ECO "D35"]
[WhiteElo "2108"]
[BlackElo "2074"]
[Annotator "ChessBase"]
[PlyCount "102"]
[EventDate "2021.11.27"]
[EventType "team-tourn"]
[EventCountry "ENG"]
[SourceTitle "playchess.com"]
[Source "ChessBase"]
[SourceQuality "1"]
[TimeControl "40/6000+30:3000+30"]

1. d4 {[%emt 0:02:07]} Nf6 {[%emt 0:00:07]} 2. c4 {[%emt 0:00:10]} e6 {[%emt 0:00:03]} 3. Nc3 {[%emt 0:00:03]} Bb4 {[%emt 0:00:11]} 4. Qc2 {[%emt 0:00:04]} d5 {[%emt 0:02:25]} 5. cxd5 {[%emt 0:00:15]} exd5 {[%emt 0:00:51]} 6. Bg5 {[%emt 0:00:11]} O-O {[%emt 0:03:22]} 7. e3 {[%emt 0:00:53]} c6 {[%emt 0:05:36]} 8. Bd3 {[%emt 0:03:26]} h6 {[%emt 0:00:48]} 9. Bh4 {[%emt 0:01:07]} Nbd7 {[%emt 0:02:48]} 10. Nge2 {[%emt 0:05:36]} Re8 {[%emt 0:01:28]} 11. O-O {[%emt 0:01:35]} Nf8 {[%emt 0:03:49]} 12. a3 {[%emt 0:14:41]} Bd6 {[%emt 0:06:32]} 13. Bg3 {[%emt 0:06:56]} Bg4 {[%emt 0:23:01]} 14. f3 {[%emt 0:18:17]} Bh5 {[%emt 0:00:36]} 15. Bf2 {[%emt 0:00:39]} Bg6 {[%emt 0:08:39]} 16. Rae1 {[%emt 0:07:57]} Qc7 {[%emt 0:08:15]} 17. h3 {[%emt 0:12:57]} Nh5 {[%emt 0:07:26]} 18. e4 {[%emt 0:09:33]} Bh2+ {[%emt 0:05:39]} 19. Kh1 {[%emt 0:00:02]} Ng3+ {[%emt 0:00:47]} 20. Kxh2 {[%emt 0:06:00]} Nxe2+ {[%emt 0:01:32]} 21. g3 {[%emt 0:00:48]} Nxc3 {[%emt 0:01:59]} 22. bxc3 {[%emt 0:03:25]} Nd7 {[%emt 0:04:22]} 23. c4 {[%emt 0:01:16]} dxe4 {[%emt 0:02:50]} 24. fxe4 {[%emt 0:00:08]} c5 {[%emt 0:01:19]} 25. e5 {[%emt 0:05:33]} Bxd3 {[%emt 0:03:15]} 26. Qxd3 {[%emt 0:00:03]} cxd4 {[%emt 0:00:45]} 27. e6 {[%emt 0:02:54]} Rxe6 {[%emt 0:01:34]} 28. Rxe6 {[%emt 0:01:28]} fxe6 {[%emt 0:00:03]} 29. Bxd4 {[%emt 0:00:50]} Nf8 {[%emt 0:00:55]} 30. Qe4 {[%emt 0:01:30]} Qxc4 {[%emt 0:02:36]} 31. Qe5 {[%emt 0:00:45]} Qc2+ {[%emt 0:00:14]} 32. Rf2 {[%emt 0:00:03]} Qg6 {[%emt 0:00:14]} 33. Bxa7 {[%emt 0:02:29]} Rc8 {[%emt 0:01:37]} 34. Qd6 {[%emt 0:01:46]} Qe8 {[%emt 0:01:44]} 35. Bd4 {[%emt 0:00:55]} Rd8 {[%emt 0:01:03]} 36. Qe5 {[%emt 0:00:57]} Qd7 {[%emt 0:02:13]} 37. Bb6 {[%emt 0:01:03]} Rc8 {[%emt 0:01:00]} 38. Re2 {[%emt 0:00:30]} Qd5 {[%emt 0:01:31]} 39. Qxd5 {[%emt 0:00:31]} exd5 {[%emt 0:00:02]} 40. Re7 {[%emt 0:00:06]} Rc2+ {[%emt 0:00:55]} 41. Kg1 {[%emt 0:50:42]} Rc6 {[%emt 0:54:39]} 42. Rxb7 {[%emt 0:00:00]} Ne6 {[%emt 0:00:00]} 43. a4 {[%emt 0:00:00]} Nc5 {[%emt 0:00:00]} 44. Rb8+ {[%emt 0:00:00]} Kh7 {[%emt 0:00:00]} 45. a5 {[%emt 0:00:00]} Nd7 {[%emt 0:00:00]} 46. Rb7 {[%emt 0:00:00]} Nxb6 {[%emt 0:00:00]} 47. axb6 {[%emt 0:00:00]} Re6 {[%emt 0:00:00]} 48. Rb8 {[%emt 0:00:00]} Kg6 {[%emt 0:00:00]} 49. Kf2 {[%emt 0:00:00]} d4 {[%emt 0:00:00]} 50. b7 {[%emt 0:00:00]} Re7 {[%emt 0:00:00]} 51. Rd8 {[%emt 0:00:23]} Rxb7 {[%emt 0:00:00]} 1/2-1/2

[Event "4NCL 2021-22"]
[Site "England"]
[Date "2022.02.12"]
[Round "3.54"]
[White "Murray, David"]
[Black "Blake, J Morgan"]
[Result "1-0"]
[ECO "C54"]
[WhiteElo "2108"]
[BlackElo "2122"]
[Annotator "NA"]
[PlyCount "61"]
[EventDate "2021.11.27"]
[EventType "team-tourn"]
[EventCountry "ENG"]
[SourceTitle "playchess.com"]
[Source "ChessBase"]
[SourceQuality "1"]
[TimeControl "40/6000+30:3000+30"]

1. e4 {[%emt 0:00:07]} e5 {[%emt 0:00:06]} 2. Nf3 {[%emt 0:00:28]} Nc6 {[%emt 0:00:03]} 3. Bc4 {[%emt 0:00:57]} Nf6 {[%emt 0:00:11]} 4. d3 {[%emt 0:01:23]} Bc5 {[%emt 0:05:56]} 5. c3 {[%emt 0:01:27]} d6 {[%emt 0:07:18]} 6. a4 {[%emt 0:04:17]} a6 {[%emt 0:01:22]} 7. O-O {[%emt 0:01:46]} O-O {[%emt 0:00:54]} 8. Re1 {[%emt 0:03:12]} Bb6 {[%emt 0:06:29]} 9. Be3 {[%emt 0:03:40]} Bxe3 {[%emt 0:02:56]} 10. Rxe3 {[%emt 0:00:34]} d5 {[%emt 0:10:57]} 11. exd5 {[%emt 0:01:44]} Nxd5 {[%emt 0:00:14]} 12. Re1 {[%emt 0:00:50]} Bg4 {[%emt 0:02:55]} 13. h3 {[%emt 0:06:51]} Bh5 {[%emt 0:00:48]} 14. g4 {[%emt 0:10:03]} Bg6 {[%emt 0:00:40]} 15. Nxe5 {[%emt 0:02:18]} Nxe5 {[%emt 0:10:33]} 16. Rxe5 {[%emt 0:00:17]} Nf4 {[%emt 0:03:43]} 17. Qf3 {[%emt 0:05:37]} Qf6 {[%emt 0:01:06]} 18. d4 {[%emt 0:05:17]} Rae8 {[%emt 0:01:39]} 19. Re3 {[%emt 0:02:48]} h5 {[%emt 0:10:13]} 20. Nd2 {[%emt 0:03:20]} Qg5 {[%emt 0:01:55]} 21. Rae1 {[%emt 0:08:15]} hxg4 {[%emt 0:04:19]} 22. hxg4 {[%emt 0:00:18]} Rxe3 {[%emt 0:02:23]} 23. Rxe3 {[%emt 0:02:47]} b5 {[%emt 0:21:37]} 24. axb5 {[%emt 0:00:42]} axb5 {[%emt 0:01:00]} 25. Bf1 {[%emt 0:08:13]} f5 {[%emt 0:02:23]} 26. Re5 {[%emt 0:02:46]} Bh5 {[%emt 0:04:12]} 27. Qg3 {[%emt 0:04:45]} Qxg4 {[%emt 0:03:39]} 28. Qxg4 {[%emt 0:01:21]} Bxg4 {[%emt 0:00:48]} 29. f3 {[%emt 0:02:07]} Bh5 {[%emt 0:02:22]} 30. Bxb5 {[%emt 0:00:33]} Ng6 {[%emt 0:01:25]} 31. Rc5 {[%emt 0:01:41]} 1-0

[Event "4NCL 2021-22"]
[Site "England"]
[Date "2022.02.12"]
[Round "3.55"]
[White "Miller, Dominic"]
[Black "Freeman, Gordon"]
[Result "1/2-1/2"]
[ECO "B81"]
[WhiteElo "2130"]
[BlackElo "2092"]
[Annotator "ChessBase"]
[PlyCount "126"]
[EventDate "2021.11.27"]
[EventType "team-tourn"]
[EventCountry "ENG"]
[SourceTitle "playchess.com"]
[Source "ChessBase"]
[SourceQuality "1"]
[TimeControl "40/6000+30:3000+30"]

1. e4 {[%emt 0:00:16]} c5 {[%emt 0:00:33]} 2. Nf3 {[%emt 0:00:09]} d6 {[%emt 0:00:16]} 3. d4 {[%emt 0:00:24]} cxd4 {[%emt 0:00:08]} 4. Nxd4 {[%emt 0:00:10]} Nf6 {[%emt 0:00:07]} 5. Nc3 {[%emt 0:00:18]} e6 {[%emt 0:00:16]} 6. g4 {[%emt 0:01:38]} h6 {[%emt 0:00:46]} 7. Rg1 {[%emt 0:04:48]} Nc6 {[%emt 0:01:42]} 8. h4 {[%emt 0:11:05]} d5 {[%emt 0:03:09]} 9. exd5 {[%emt 0:01:35]} Nxd5 {[%emt 0:00:13]} 10. Nxd5 {[%emt 0:01:54]} Qxd5 {[%emt 0:00:18]} 11. Bg2 {[%emt 0:00:14]} Qe5+ {[%emt 0:01:30]} 12. Be3 {[%emt 0:00:16]} Bd7 {[%emt 0:01:15]} 13. Nxc6 {[%emt 0:01:52]} Bxc6 {[%emt 0:00:20]} 14. Bxc6+ {[%emt 0:00:06]} bxc6 {[%emt 0:00:07]} 15. Qd4 {[%emt 0:01:54]} Qxd4 {[%emt 0:01:33]} 16. Bxd4 {[%emt 0:00:05]} Rg8 {[%emt 0:05:37]} 17. h5 {[%emt 0:20:28]} Be7 {[%emt 0:07:28]} 18. Rd1 {[%emt 0:39:18]} O-O-O {[%emt 0:11:56]} 19. Ke2 {[%emt 0:07:07]} a6 {[%emt 0:13:38]} 20. c4 {[%emt 0:02:56]} g6 {[%emt 0:09:44]} 21. hxg6 {[%emt 0:01:48]} Rxg6 {[%emt 0:00:42]} 22. f3 {[%emt 0:07:49]} f5 {[%emt 0:04:37]} 23. gxf5 {[%emt 0:03:18]} Rxg1 {[%emt 0:00:48]} 24. Bxg1 {[%emt 0:00:02]} Rxd1 {[%emt 0:00:20]} 25. Kxd1 {[%emt 0:00:04]} exf5 {[%emt 0:00:10]} 26. Bh2 {[%emt 0:01:36]} Kd7 {[%emt 0:01:32]} 27. Ke2 {[%emt 0:01:11]} h5 {[%emt 0:08:54]} 28. Kf2 {[%emt 0:01:01]} Ke6 {[%emt 0:15:13]} 29. Kg2 {[%emt 0:00:18]} Bf6 {[%emt 0:05:17]} 30. b4 {[%emt 0:01:09]} Bc3 {[%emt 0:13:38]} 31. Kh3 {[%emt 0:00:22]} Be1 {[%emt 0:02:30]} 32. Bg3 {[%emt 0:00:33]} Bxb4 {[%emt 0:00:25]} 33. Kh4 {[%emt 0:00:02]} Bd2 {[%emt 0:00:57]} 34. Kxh5 {[%emt 0:01:00]} f4 {[%emt 0:00:15]} 35. Bh2 {[%emt 0:00:01]} Kf5 {[%emt 0:00:29]} 36. Kh6 {[%emt 0:00:19]} Be3 {[%emt 0:00:57]} 37. Kh5 {[%emt 0:00:15]} Bf2 {[%emt 0:00:31]} 38. Kh6 {[%emt 0:00:16]} Bd4 {[%emt 0:00:51]} 39. Kh5 {[%emt 0:00:16]} Bf2 {[%emt 0:00:22]} 40. Kh6 {[%emt 0:00:18]} c5 {[%emt 0:00:47]} 41. Kh5 {[%emt 0:51:40]} a5 {[%emt 0:13:24]} 42. Kh6 {[%emt 0:00:00]} a4 {[%emt 0:03:18]} 43. Kh5 {[%emt 0:00:00]} a3 {[%emt 0:08:49]} 44. Kh6 {[%emt 0:00:00]} Be3 {[%emt 0:04:47]} 45. Kh5 {[%emt 0:00:00]} Ke5 {[%emt 0:02:06]} 46. Kg4 {[%emt 0:00:00]} Kd4 {[%emt 0:00:41]} 47. Bxf4 {[%emt 0:00:00]} Bxf4 {[%emt 0:00:23]} 48. Kxf4 {[%emt 0:00:00]} Kxc4 {[%emt 0:00:09]} 49. Ke4 {[%emt 0:00:00]} Kc3 {[%emt 0:00:48]} 50. f4 {[%emt 0:00:00]} c4 {[%emt 0:00:19]} 51. f5 {[%emt 0:00:00]} Kb2 {[%emt 0:00:35]} 52. f6 {[%emt 0:00:00]} c3 {[%emt 0:00:34]} 53. f7 {[%emt 0:00:00]} c2 {[%emt 0:00:15]} 54. f8=Q {[%emt 0:00:00]} c1=Q {[%emt 0:00:19]} 55. Qf2+ {[%emt 0:00:00]} Ka1 {[%emt 0:01:15]} 56. Kd3 {[%emt 0:00:00]} Qb1+ {[%emt 0:02:00]} 57. Qc2 {[%emt 0:00:00]} Qb5+ {[%emt 0:03:29]} 58. Kd2 {[%emt 0:00:00]} Qb2 {[%emt 0:00:58]} 59. Kd3 {[%emt 0:00:00]} Kxa2 {[%emt 0:00:32]} 60. Kd2 {[%emt 0:00:00]} Ka1 {[%emt 0:00:49]} 61. Kd3 {[%emt 0:00:00]} Qb5+ {[%emt 0:04:37]} 62. Kd2 {[%emt 0:00:00]} Qb4+ {[%emt 0:00:32]} 63. Kd3 {[%emt 0:00:00]} Qd6+ {[%emt 0:00:37]} 1/2-1/2

[Event "4NCL 2021-22"]
[Site "England"]
[Date "2022.02.12"]
[Round "3.56"]
[White "Jackson, Carl"]
[Black "Kolani, Arjun"]
[Result "0-1"]
[ECO "E17"]
[WhiteElo "1979"]
[BlackElo "2035"]
[Annotator "ChessBase"]
[PlyCount "72"]
[EventDate "2021.11.27"]
[EventType "team-tourn"]
[EventCountry "ENG"]
[SourceTitle "playchess.com"]
[Source "ChessBase"]
[SourceQuality "1"]
[TimeControl "40/6000+30:3000+30"]

1. b3 {[%emt 0:01:00]} Nf6 {[%emt 0:00:44]} 2. Bb2 {[%emt 0:00:06]} e6 {[%emt 0:00:26]} 3. Nf3 {[%emt 0:01:25]} d5 {[%emt 0:00:40]} 4. c4 {[%emt 0:03:29]} Be7 {[%emt 0:01:02]} 5. g3 {[%emt 0:01:20]} O-O {[%emt 0:04:56]} 6. Bg2 {[%emt 0:01:49]} b6 {[%emt 0:04:41]} 7. O-O {[%emt 0:02:52]} Bb7 {[%emt 0:01:29]} 8. d4 {[%emt 0:02:01]} Nbd7 {[%emt 0:07:27]} 9. Nc3 {[%emt 0:03:33]} Ne4 {[%emt 0:03:58]} 10. Nxe4 {[%emt 0:12:43]} dxe4 {[%emt 0:00:28]} 11. Nd2 {[%emt 0:00:14]} f5 {[%emt 0:02:59]} 12. Qc2 {[%emt 0:16:28]} c5 {[%emt 0:08:15]} 13. Rfd1 {[%emt 0:02:51]} Qc7 {[%emt 0:03:57]} 14. e3 {[%emt 0:04:00]} Bf6 {[%emt 0:04:43]} 15. Nf1 {[%emt 0:08:44]} Rad8 {[%emt 0:18:57]} 16. Qe2 {[%emt 0:04:16]} Nb8 {[%emt 0:08:59]} 17. Rac1 {[%emt 0:15:21]} Nc6 {[%emt 0:08:02]} 18. dxc5 {[%emt 0:04:03]} Bxb2 {[%emt 0:02:37]} 19. Qxb2 {[%emt 0:00:31]} bxc5 {[%emt 0:00:57]} 20. Nd2 {[%emt 0:13:27]} Ne5 {[%emt 0:04:20]} 21. Bf1 {[%emt 0:01:07]} g5 {[%emt 0:09:39]} 22. Qc2 {[%emt 0:08:51]} Rd7 {[%emt 0:10:53]} 23. Be2 {[%emt 0:00:17]} Rdf7 {[%emt 0:00:54]} 24. Rf1 {[%emt 0:00:44]} Rd8 {[%emt 0:00:45]} 25. f4 {[%emt 0:00:31]} exf3 {[%emt 0:00:32]} 26. Nxf3 {[%emt 0:00:38]} Ng4 {[%emt 0:00:31]} 27. Qc3 {[%emt 0:00:44]} Bxf3 {[%emt 0:00:25]} 28. Bxf3 {[%emt 0:00:20]} Ne5 {[%emt 0:00:09]} 29. Bh5 {[%emt 0:00:49]} Rfd7 {[%emt 0:00:18]} 30. Rcd1 {[%emt 0:00:03]} g4 {[%emt 0:01:00]} 31. Rxd7 {[%emt 0:00:46]} Rxd7 {[%emt 0:00:09]} 32. e4 {[%emt 0:00:39]} Rd3 {[%emt 0:00:57]} 33. Qc1 {[%emt 0:00:43]} Nf3+ {[%emt 0:00:25]} 34. Rxf3 {[%emt 0:00:12]} gxf3 {[%emt 0:00:10]} 35. exf5 {[%emt 0:00:18]} Qd8 {[%emt 0:00:14]} 36. Kf2 {[%emt 0:00:55]} Qd4+ {[%emt 0:00:08]} 0-1

[Event "4NCL 2021-22"]
[Site "England"]
[Date "2022.02.12"]
[Round "3.58"]
[White "Townsend, M Paul"]
[Black "Bisby, Daniel L"]
[Result "1/2-1/2"]
[ECO "E94"]
[WhiteElo "2284"]
[BlackElo "2296"]
[Annotator "ChessBase"]
[PlyCount "110"]
[EventDate "2021.11.27"]
[EventType "team-tourn"]
[EventCountry "ENG"]
[SourceTitle "playchess.com"]
[Source "ChessBase"]
[SourceQuality "1"]
[TimeControl "40/6000+30:3000+30"]

1. d4 {[%emt 0:00:04]} Nf6 {[%emt 0:05:27]} 2. c4 {[%emt 0:00:21]} g6 {[%emt 0:00:07]} 3. Nc3 {[%emt 0:00:17]} Bg7 {[%emt 0:00:08]} 4. e4 {[%emt 0:00:25]} O-O {[%emt 0:00:25]} 5. Nf3 {[%emt 0:00:22]} d6 {[%emt 0:00:21]} 6. Be2 {[%emt 0:00:12]} e5 {[%emt 0:01:06]} 7. O-O {[%emt 0:00:28]} Nh5 {[%emt 0:03:53]} 8. g3 {[%emt 0:00:40]} Na6 {[%emt 0:07:19]} 9. dxe5 {[%emt 0:25:58]} dxe5 {[%emt 0:00:18]} 10. Be3 {[%emt 0:01:15]} Nf6 {[%emt 0:17:14]} 11. Nxe5 {[%emt 0:23:10]} Nxe4 {[%emt 0:02:40]} 12. Nxe4 {[%emt 0:02:05]} Bxe5 {[%emt 0:00:49]} 13. Qb3 {[%emt 0:12:39]} Qe7 {[%emt 0:05:47]} 14. Bf3 {[%emt 0:06:21]} c6 {[%emt 0:14:32]} 15. Rfe1 {[%emt 0:03:20]} Qb4 {[%emt 0:06:28]} 16. Bh6 {[%emt 0:07:48]} Qxb3 {[%emt 0:12:14]} 17. axb3 {[%emt 0:00:10]} Rd8 {[%emt 0:08:03]} 18. Bg5 {[%emt 0:01:48]} Rd3 {[%emt 0:01:49]} 19. Nf6+ {[%emt 0:07:43]} Bxf6 {[%emt 0:00:20]} 20. Bxf6 {[%emt 0:00:04]} Be6 {[%emt 0:08:27]} 21. Bxc6 {[%emt 0:05:14]} Nc5 {[%emt 0:01:09]} 22. Bg2 {[%emt 0:01:48]} Rxb3 {[%emt 0:03:11]} 23. Bd4 {[%emt 0:03:08]} Nd7 {[%emt 0:05:20]} 24. Re3 {[%emt 0:03:00]} Rb4 {[%emt 0:01:56]} 25. b3 {[%emt 0:00:27]} a5 {[%emt 0:00:17]} 26. Bc3 {[%emt 0:03:00]} Rxb3 {[%emt 0:00:17]} 27. Rxa5 {[%emt 0:00:37]} Rxa5 {[%emt 0:01:41]} 28. Bxa5 {[%emt 0:00:03]} Rxe3 {[%emt 0:00:29]} 29. fxe3 {[%emt 0:00:03]} b6 {[%emt 0:00:30]} 30. Bc3 {[%emt 0:01:10]} Bxc4 {[%emt 0:00:11]} 31. Bc6 {[%emt 0:00:17]} Nc5 {[%emt 0:00:32]} 32. Bd4 {[%emt 0:01:26]} Kf8 {[%emt 0:00:54]} 33. Kf2 {[%emt 0:00:22]} Ke7 {[%emt 0:01:03]} 34. Ke1 {[%emt 0:00:56]} Kd6 {[%emt 0:00:21]} 35. Bf3 {[%emt 0:00:15]} b5 {[%emt 0:01:11]} 36. Bc3 {[%emt 0:00:37]} Nd3+ {[%emt 0:01:02]} 37. Kd2 {[%emt 0:00:11]} b4 {[%emt 0:00:24]} 38. Bg7 {[%emt 0:00:21]} Ne5 {[%emt 0:00:35]} 39. Bf8+ {[%emt 0:00:23]} Ke6 {[%emt 0:00:14]} 40. Bg2 {[%emt 0:00:52]} b3 {[%emt 0:00:56]} 41. Kc3 {[%emt 0:51:08]} f5 {[%emt 0:08:39]} 42. e4 {[%emt 0:00:00]} fxe4 {[%emt 0:01:27]} 43. Bxe4 {[%emt 0:00:00]} Bd5 {[%emt 0:00:35]} 44. Bd3 {[%emt 0:00:00]} Ng4 {[%emt 0:16:08]} 45. h4 {[%emt 0:00:00]} Nf6 {[%emt 0:00:20]} 46. Bc5 {[%emt 0:00:00]} Be4 {[%emt 0:07:26]} 47. Be2 {[%emt 0:00:00]} Bc2 {[%emt 0:01:40]} 48. Bf3 {[%emt 0:00:00]} Be4 {[%emt 0:06:24]} 49. Be2 {[%emt 0:00:00]} Kf5 {[%emt 0:00:34]} 50. Kxb3 {[%emt 0:00:00]} Bd5+ {[%emt 0:01:26]} 51. Kc2 {[%emt 0:00:00]} Ne4 {[%emt 0:00:34]} 52. Bd3 {[%emt 0:00:00]} Kg4 {[%emt 0:00:10]} 53. Bxe4 {[%emt 0:00:00]} Bxe4+ {[%emt 0:00:06]} 54. Kd2 {[%emt 0:00:00]} Kxg3 {[%emt 0:00:27]} 55. Be7 {[%emt 0:00:00]} h5 {[%emt 0:00:24]} 1/2-1/2

[Event "4NCL 2021-22"]
[Site "England"]
[Date "2022.02.12"]
[Round "3.59"]
[White "Hill, Alistair"]
[Black "Barry, Colm"]
[Result "0-1"]
[ECO "C41"]
[WhiteElo "2236"]
[BlackElo "2241"]
[Annotator "ChessBase"]
[PlyCount "94"]
[EventDate "2021.11.27"]
[EventType "team-tourn"]
[EventCountry "ENG"]
[SourceTitle "playchess.com"]
[Source "ChessBase"]
[SourceQuality "1"]
[TimeControl "40/6000+30:3000+30"]

1. e4 {[%emt 0:01:31]} e5 {[%emt 0:07:58]} 2. Nf3 {[%emt 0:00:08]} d6 {[%emt 0:00:31]} 3. d4 {[%emt 0:00:19]} Nf6 {[%emt 0:00:23]} 4. dxe5 {[%emt 0:01:43]} Nxe4 {[%emt 0:00:10]} 5. Bc4 {[%emt 0:00:18]} c6 {[%emt 0:00:17]} 6. O-O {[%emt 0:00:15]} d5 {[%emt 0:00:27]} 7. Bd3 {[%emt 0:00:23]} Nc5 {[%emt 0:08:10]} 8. Be2 {[%emt 0:11:21]} Be7 {[%emt 0:01:35]} 9. h3 {[%emt 0:06:58]} O-O {[%emt 0:01:54]} 10. Be3 {[%emt 0:08:21]} Nbd7 {[%emt 0:19:06]} 11. Nbd2 {[%emt 0:03:43]} Qc7 {[%emt 0:05:45]} 12. Bf4 {[%emt 0:12:57]} Ne6 {[%emt 0:03:49]} 13. Bg3 {[%emt 0:00:18]} Qb6 {[%emt 0:02:08]} 14. Nb3 {[%emt 0:05:02]} Ndc5 {[%emt 0:03:02]} 15. Nfd2 {[%emt 0:05:19]} a5 {[%emt 0:12:22]} 16. c3 {[%emt 0:04:34]} a4 {[%emt 0:04:09]} 17. Nxc5 {[%emt 0:02:05]} Nxc5 {[%emt 0:01:08]} 18. Qc2 {[%emt 0:00:26]} g6 {[%emt 0:03:40]} 19. Bg4 {[%emt 0:10:20]} Bg5 {[%emt 0:13:42]} 20. Bxc8 {[%emt 0:03:11]} Raxc8 {[%emt 0:00:16]} 21. Bh2 {[%emt 0:06:01]} Bh6 {[%emt 0:04:18]} 22. Kh1 {[%emt 0:01:26]} Qa6 {[%emt 0:03:27]} 23. f4 {[%emt 0:07:10]} Qd3 {[%emt 0:00:51]} 24. Qd1 {[%emt 0:03:57]} f5 {[%emt 0:01:02]} 25. Bg1 {[%emt 0:01:47]} Ne6 {[%emt 0:00:34]} 26. Rf3 {[%emt 0:01:15]} Qb5 {[%emt 0:00:22]} 27. Be3 {[%emt 0:02:49]} Qxb2 {[%emt 0:01:49]} 28. Rb1 {[%emt 0:04:34]} Qxa2 {[%emt 0:00:58]} 29. Rf2 {[%emt 0:01:40]} Qa3 {[%emt 0:00:24]} 30. Rxb7 {[%emt 0:00:46]} Qxc3 {[%emt 0:01:33]} 31. Rf3 {[%emt 0:00:02]} Qa5 {[%emt 0:02:46]} 32. Ra7 {[%emt 0:00:11]} Qb5 {[%emt 0:02:06]} 33. Rxa4 {[%emt 0:03:19]} c5 {[%emt 0:00:56]} 34. Nf1 {[%emt 0:02:17]} d4 {[%emt 0:01:43]} 35. Bc1 {[%emt 0:00:08]} c4 {[%emt 0:01:12]} 36. Rfa3 {[%emt 0:00:34]} Qd5 {[%emt 0:01:23]} 37. Ra5 {[%emt 0:00:57]} Qe4 {[%emt 0:00:32]} 38. Ng3 {[%emt 0:00:29]} Qb1 {[%emt 0:00:44]} 39. Ra1 {[%emt 0:00:14]} Qb3 {[%emt 0:00:43]} 40. Qe1 {[%emt 0:01:06]} Bxf4 {[%emt 0:01:18]} 41. Bxf4 {[%emt 0:50:33]} Nxf4 {[%emt 0:50:12]} 42. R1a3 {[%emt 0:00:00]} Qb2 {[%emt 0:00:00]} 43. Ra2 {[%emt 0:00:00]} Nd3 {[%emt 0:00:00]} 44. Rxb2 {[%emt 0:00:00]} Nxe1 {[%emt 0:00:00]} 45. e6 {[%emt 0:00:00]} Rc7 {[%emt 0:00:00]} 46. Re2 {[%emt 0:00:00]} Nd3 {[%emt 0:00:00]} 47. Rd5 {[%emt 0:00:00]} Nf4 {[%emt 0:00:00]} 0-1